fUST/lending_fUST_20250726
["ID","MTS","AMOUNT","RATE_DAILY","PERIOD"]
[375114378,1753533039639,-225.65865543,0.00019451,2]
[375114379,1753533039648,-460.0,0.00019451,2]
[375114381,1753533039658,-460.0,0.00019451,2]
[375114383,1753533039667,-460.0,0.00019451,2]
[375114385,1753533039676,-514.19,0.00019451,2]
[375114387,1753533039686,-460.0,0.00019451,2]
[375114389,1753533039697,-460.0,0.00019451,2]
[375114391,1753533039706,-460.0,0.00019451,2]
[375114393,1753533039716,-460.0,0.00019451,2]
[375114395,1753533039726,-978.32,0.00019451,2]
[375114397,1753533039735,-460.0,0.00019451,2]
[375114399,1753533039745,-460.0,0.00019451,2]
[375114401,1753533039755,-460.0,0.00019451,2]
[375114403,1753533039764,-219.82330503,0.00019451,2]
[375114405,1753533039773,-657.74,0.00019451,2]
[375114407,1753533039783,-2685.47,0.00019451,2]
[375114409,1753533039792,-548.03,0.00019451,2]
[375114411,1753533039802,-460.0,0.00019451,2]
[375114413,1753533039811,-564.0,0.00019452,2]
[375114415,1753533039820,-151.0,0.00019452,2]
[375114417,1753533039830,-151.0,0.00019452,2]
[375114419,1753533039839,-460.0,0.00019452,2]
[375114421,1753533039849,-460.0,0.00019452,2]
[375114423,1753533039859,-151.0,0.00019452,2]
[375114425,1753533039869,-685.0,0.00019452,2]
[375114427,1753533039879,-151.0,0.00019452,2]
[375114429,1753533039888,-151.0,0.00019452,2]
[375114431,1753533039898,-151.0,0.00019452,2]
[375114433,1753533039907,-151.0,0.00019452,2]
[375114435,1753533039917,-151.0,0.00019452,2]
[375114437,1753533039926,-151.0,0.00019452,2]
[375114439,1753533039936,-248.21941893,0.00019452,2]
[375114441,1753533039945,-151.0,0.00019452,2]
[375114443,1753533039954,-151.0,0.00019452,2]
[375114445,1753533039967,-204.97858895,0.00019452,2]
[375114447,1753533039976,-460.0,0.00019452,2]
[375114449,1753533039986,-460.0,0.00019452,2]
[375114451,1753533039996,-460.0,0.00019452,2]
[375114453,1753533040006,-532.78888518,0.00019452,2]
[375114455,1753533040015,-460.0,0.00019452,2]
[375114457,1753533040025,-460.0,0.00019452,2]
[375114459,1753533040034,-460.0,0.00019452,2]
[375114462,1753533040046,-460.0,0.00019452,2]
[375114465,1753533040056,-460.0,0.00019452,2]
[375114468,1753533040064,-460.0,0.00019452,2]
[375114471,1753533040073,-2412.0,0.00019452,2]
[375114474,1753533040083,-164.29,0.00019452,2]
[375114477,1753533040092,-1340.09,0.00019452,2]
[375114480,1753533040103,-460.0,0.00019452,2]
[375114483,1753533040112,-460.0,0.00019452,2]
[375114486,1753533040122,-460.0,0.00019452,2]
[375114489,1753533040132,-1181.35,0.00019452,2]
[375114492,1753533040143,-985.33,0.00019452,2]
[375114494,1753533040152,-460.0,0.00019452,2]
[375114496,1753533040162,-460.0,0.00019452,2]
[375114499,1753533040172,-531.31386285,0.00019452,2]
[375114502,1753533040181,-274.29,0.00019452,2]
[375114505,1753533040190,-460.0,0.00019452,2]
[375114508,1753533040201,-460.0,0.00019452,2]
[375114512,1753533040211,-761.41,0.00019452,2]
[375114515,1753533040222,-460.0,0.00019452,2]
[375114518,1753533040231,-460.0,0.00019452,2]
[375114521,1753533040241,-460.0,0.00019452,2]
[375114523,1753533040251,-460.0,0.00019452,2]
[375114526,1753533040260,-460.0,0.00019452,2]
[375114529,1753533040270,-460.0,0.00019452,2]
[375114532,1753533040279,-460.0,0.00019452,2]
[375114535,1753533040289,-460.0,0.00019452,2]
[375114538,1753533040298,-1022.6,0.00019452,2]
[375114542,1753533040308,-460.0,0.00019452,2]
[375114545,1753533040317,-460.0,0.00019452,2]
[375114548,1753533040327,-460.0,0.00019452,2]
[375114550,1753533040336,-460.0,0.00019452,2]
[375114553,1753533040346,-460.0,0.00019452,2]
[375114556,1753533040355,-460.0,0.00019452,2]
[375114559,1753533040365,-460.0,0.00019452,2]
[375114562,1753533040374,-460.0,0.00019452,2]
[375114565,1753533040383,-460.0,0.00019452,2]
[375114568,1753533040393,-460.0,0.00019452,2]
[375114571,1753533040402,-460.0,0.00019452,2]
[375114574,1753533040412,-302.66710251,0.00019467,2]
[375114577,1753533040421,-303.12069493,0.00019656,2]
[375114580,1753533040431,-460.0,0.00019725,2]
[375114583,1753533040440,-514.19,0.00019725,2]
[375114586,1753533040449,-460.0,0.00019725,2]
[375114589,1753533040459,-460.0,0.00019725,2]
[375114592,1753533040468,-460.0,0.00019725,2]
[375114595,1753533040478,-978.32,0.00019725,2]
[375114598,1753533040487,-460.0,0.00019725,2]
[375114601,1753533040497,-459.78723784,0.00019725,2]
[375114604,1753533040506,-657.74,0.00019725,2]
[375114607,1753533040515,-2685.47,0.00019725,2]
[375114610,1753533040525,-548.03,0.00019725,2]
[375114613,1753533040534,-460.0,0.00019725,2]
[375114616,1753533040544,-564.0,0.00019726,2]
[375114619,1753533040553,-151.0,0.00019726,2]
[375114621,1753533040563,-685.0,0.00019726,2]
[375114623,1753533040571,-151.0,0.00019726,2]
[375114625,1753533040581,-151.0,0.00019726,2]
[375114627,1753533040590,-151.92336044,0.00019726,2]
[375114629,1753533040600,-151.0,0.00019726,2]
[375114632,1753533040610,-151.05000522,0.00019726,2]
[375114636,1753533040619,-151.0,0.00019726,2]
[375114638,1753533040629,-151.0,0.00019726,2]
[375114641,1753533040638,-460.0,0.00019726,2]
[375114645,1753533040648,-151.0,0.00019726,2]
[375114648,1753533040657,-151.0,0.00019726,2]
[375114651,1753533040667,-151.0,0.00019726,2]
[375114653,1753533040676,-151.0,0.00019726,2]
[375114656,1753533040685,-460.0,0.00019726,2]
[375114658,1753533040695,-151.0,0.00019726,2]
[375114662,1753533040705,-151.0,0.00019726,2]
[375114665,1753533040715,-151.0,0.00019726,2]
[375114667,1753533040724,-151.0,0.00019726,2]
[375114671,1753533040734,-151.00525167,0.00019726,2]
[375114673,1753533040743,-151.0,0.00019726,2]
[375114676,1753533040754,-300.48934009,0.00019726,2]
[375114680,1753533040763,-460.0,0.00019726,2]
[375114683,1753533040773,-460.0,0.00019726,2]
[375114686,1753533040782,-249.13,0.00019726,2]
[375114688,1753533040791,-460.0,0.00019726,2]
[375114691,1753533040801,-460.0,0.00019726,2]
[375114694,1753533040810,-460.0,0.00019726,2]
[375114698,1753533040819,-460.0,0.00019726,2]
[375114700,1753533040830,-460.0,0.00019726,2]
[375114704,1753533040840,-460.0,0.00019726,2]
[375114708,1753533040849,-2412.0,0.00019726,2]
[375114710,1753533040859,-1340.09,0.00019726,2]
[375114713,1753533040868,-460.0,0.00019726,2]
[375114717,1753533040878,-460.0,0.00019726,2]
[375114718,1753533040887,-460.0,0.00019726,2]
[375114721,1753533040897,-1181.35,0.00019726,2]
[375114724,1753533040906,-985.33,0.00019726,2]
[375114728,1753533040916,-460.0,0.00019726,2]
[375114730,1753533040925,-761.41,0.00019726,2]
[375114733,1753533040935,-460.0,0.00019726,2]
[375114736,1753533040944,-460.0,0.00019726,2]
[375114739,1753533040953,-460.0,0.00019726,2]
[375114742,1753533040963,-460.0,0.00019726,2]
[375114746,1753533040976,-460.0,0.00019726,2]
[375114749,1753533040985,-460.0,0.00019726,2]
[375114752,1753533040995,-460.0,0.00019726,2]
[375114755,1753533041004,-460.0,0.00019726,2]
[375114758,1753533041014,-1022.6,0.00019726,2]
[375114761,1753533041023,-460.0,0.00019726,2]
[375114764,1753533041033,-460.0,0.00019726,2]
[375114767,1753533041043,-460.0,0.00019726,2]
[375114769,1753533041053,-460.0,0.00019726,2]
[375114772,1753533041062,-460.0,0.00019726,2]
[375114775,1753533041072,-460.0,0.00019726,2]
[375114779,1753533041082,-460.0,0.00019726,2]
[375114782,1753533041091,-460.0,0.00019726,2]
[375114785,1753533041101,-460.0,0.00019726,2]
[375114788,1753533041110,-500.0,0.00019786,2]
[375114791,1753533041119,-193.07,0.0001984,2]
[375114794,1753533041129,-460.0,0.00019999,2]
[375114797,1753533041139,-514.19,0.00019999,2]
[375114801,1753533041149,-460.0,0.00019999,2]
[375114803,1753533041160,-460.0,0.00019999,2]
[375114806,1753533041169,-460.0,0.00019999,2]
[375114810,1753533041178,-978.32,0.00019999,2]
[375114812,1753533041188,-460.0,0.00019999,2]
[375114815,1753533041200,-657.74,0.00019999,2]
[375114818,1753533041209,-2685.47,0.00019999,2]
[375114821,1753533041219,-548.03,0.00019999,2]
[375114824,1753533041229,-460.0,0.00019999,2]
[375114827,1753533041238,-564.0,0.0002,2]
[375114830,1753533041248,-198.0,0.0002,2]
[375114832,1753533041258,-151.0,0.0002,2]
[375114834,1753533041267,-151.0,0.0002,2]
[375114836,1753533041276,-151.0,0.0002,2]
[375114839,1753533041285,-151.0,0.0002,2]
[375114842,1753533041294,-151.0,0.0002,2]
[375114845,1753533041303,-151.0,0.0002,2]
[375114848,1753533041313,-151.28167398,0.0002,2]
[375114851,1753533041322,-151.0,0.0002,2]
[375114854,1753533041332,-460.0,0.0002,2]
[375114857,1753533041341,-508.9425177,0.0002,2]
[375114860,1753533041351,-460.0,0.0002,2]
[375114862,1753533041360,-460.0,0.0002,2]
[375114865,1753533041369,-460.0,0.0002,2]
[375114868,1753533041378,-460.0,0.0002,2]
[375114871,1753533041388,-460.0,0.0002,2]
[375114874,1753533041398,-460.0,0.0002,2]
[375114877,1753533041408,-460.0,0.0002,2]
[375114879,1753533041417,-460.0,0.0002,2]
[375114881,1753533041427,-2412.0,0.0002,2]
[375114883,1753533041436,-1340.09,0.0002,2]
[375114885,1753533041445,-460.0,0.0002,2]
[375114887,1753533041455,-460.0,0.0002,2]
[375114889,1753533041464,-1181.35,0.0002,2]
[375114891,1753533041475,-985.33,0.0002,2]
[375114893,1753533041484,-460.0,0.0002,2]
[375114895,1753533041493,-761.41,0.0002,2]
[375114897,1753533041503,-460.0,0.0002,2]
[375114899,1753533041512,-460.0,0.0002,2]
[375114901,1753533041522,-460.0,0.0002,2]
[375114903,1753533041531,-460.0,0.0002,2]
[375114905,1753533041540,-460.0,0.0002,2]
[375114907,1753533041549,-460.0,0.0002,2]
[375114909,1753533041558,-460.0,0.0002,2]
[375114911,1753533041567,-460.0,0.0002,2]
[375114913,1753533041577,-1022.6,0.0002,2]
[375114915,1753533041586,-354.38070396,0.0002,2]
[375114917,1753533041595,-460.0,0.0002,2]
[375114919,1753533041605,-460.0,0.0002,2]
[375114921,1753533041614,-460.0,0.0002,2]
[375114923,1753533041623,-460.0,0.0002,2]
[375114925,1753533041633,-460.0,0.0002,2]
[375114927,1753533041642,-460.0,0.0002,2]
[375114929,1753533041651,-460.0,0.0002,2]
[375114931,1753533041661,-460.0,0.0002,2]
[375114933,1753533041670,-188.4445927,0.00020073,2]
[375114935,1753533041679,-713.16391917,0.00020103,2]
[375114937,1753533041689,-159.906694,0.00020187,2]
[375114938,1753533041698,-314.29,0.00020273,2]
[375114940,1753533041708,-332.31082196,0.00020273,2]
[375114942,1753533041717,-460.0,0.00020273,2]
[375114945,1753533041727,-460.0,0.00020273,2]
[375114946,1753533041736,-514.19,0.00020273,2]
[375114948,1753533041745,-460.0,0.00020273,2]
[375114951,1753533041755,-336.36,0.00020273,2]
[375114953,1753533041765,-460.0,0.00020273,2]
[375114955,1753533041775,-460.0,0.00020273,2]
[375114957,1753533041784,-460.0,0.00020273,2]
[375114958,1753533041793,-460.0,0.00020273,2]
[375114960,1753533041803,-460.0,0.00020273,2]
[375114962,1753533041812,-205.13,0.00020273,2]
[375114964,1753533041821,-2412.0,0.00020273,2]
[375114967,1753533041831,-1340.09,0.00020273,2]
[375114969,1753533041840,-460.0,0.00020273,2]
[375114970,1753533041849,-386.87,0.00020273,2]
[375114972,1753533041859,-214.54,0.00020273,2]
[375114974,1753533041868,-1181.35,0.00020273,2]
[375114976,1753533041878,-985.33,0.00020273,2]
[375114978,1753533041887,-978.32,0.00020273,2]
[375114980,1753533041897,-460.0,0.00020273,2]
[375114982,1753533041906,-460.0,0.00020273,2]
[375114984,1753533041915,-761.41,0.00020273,2]
[375114986,1753533041924,-657.74,0.00020273,2]
[375114988,1753533041934,-460.0,0.00020273,2]
[375114990,1753533041944,-460.0,0.00020273,2]
[375114992,1753533041954,-460.0,0.00020273,2]
[375114994,1753533041966,-540.81771873,0.00020273,2]
[375114996,1753533041976,-460.0,0.00020273,2]
[375114998,1753533041986,-460.0,0.00020273,2]
[375115000,1753533041995,-460.0,0.00020273,2]
[375115002,1753533042007,-1022.6,0.00020273,2]
[375115004,1753533042016,-2685.47,0.00020273,2]
[375115006,1753533042026,-460.0,0.00020273,2]
[375115008,1753533042035,-460.0,0.00020273,2]
[375115010,1753533042045,-257.84605777,0.00020273,2]
[375115012,1753533042056,-548.03,0.00020273,2]
[375115014,1753533042066,-460.0,0.00020273,2]
[375115016,1753533042075,-460.0,0.00020273,2]
[375115018,1753533042085,-460.0,0.00020273,2]
[375115020,1753533042095,-460.0,0.00020273,2]
[375115022,1753533042105,-460.0,0.00020273,2]
[375115024,1753533042114,-587.60022804,0.00020273,2]
[375115026,1753533042124,-564.0,0.00020274,2]
[375115028,1753533042135,-685.0,0.00020274,2]
[375115030,1753533042150,-151.0,0.00020274,2]
[375115041,1753533042252,-151.0,0.00020274,2]
[375115043,1753533042261,-160.0,0.00020313,2]
[375115045,1753533042271,-160.0,0.00020313,2]
[375115047,1753533042280,-160.0,0.00020313,2]
[375115049,1753533042290,-476.98041219,0.00020313,2]
[375115051,1753533042299,-160.0,0.00020313,2]
[375115053,1753533042309,-312.16666667,0.00020313,2]
[375115055,1753533042318,-12629.83479014,0.00020313,2]
[375115057,1753533042327,-160.0,0.00020313,2]
[375115059,1753533042337,-160.0,0.00020313,2]
[375115061,1753533042346,-160.0,0.00020313,2]
[375115063,1753533042356,-214.8008262,0.00020313,2]
[375115065,1753533042366,-160.0,0.00020313,2]
[375115067,1753533042375,-215.9757969,0.00020313,2]
[375115069,1753533042385,-231.25662632,0.00020313,2]
[375115071,1753533042394,-526.41699184,0.00020313,2]
[375115073,1753533042404,-840.57612966,0.00020313,2]
[375115075,1753533042414,-1000.0,0.00020334,2]
[375115077,1753533042424,-178.5,0.00020401,2]
[375115079,1753533042434,-172.0,0.00020466,3]
[375115081,1753533042443,-460.0,0.00020547,2]
[375115083,1753533042453,-460.0,0.00020547,2]
[375115085,1753533042463,-514.19,0.00020547,2]
[375115087,1753533042472,-460.0,0.00020547,2]
[375115089,1753533042482,-460.0,0.00020547,2]
[375115091,1753533042491,-460.0,0.00020547,2]
[375115093,1753533042501,-460.0,0.00020547,2]
[375115095,1753533042511,-460.0,0.00020547,2]
[375115097,1753533042520,-460.0,0.00020547,2]
[375115099,1753533042530,-2412.0,0.00020547,2]
[375115101,1753533042539,-1340.09,0.00020547,2]
[375115103,1753533042548,-460.0,0.00020547,2]
[375115105,1753533042558,-1181.35,0.00020547,2]
[375115107,1753533042567,-985.33,0.00020547,2]
[375115109,1753533042577,-978.32,0.00020547,2]
[375115111,1753533042586,-460.0,0.00020547,2]
[375115113,1753533042597,-460.0,0.00020547,2]
[375115115,1753533042607,-761.41,0.00020547,2]
[375115117,1753533042616,-657.74,0.00020547,2]
[375115119,1753533042626,-401.75,0.00020547,2]
[375115121,1753533042636,-460.0,0.00020547,2]
[375115123,1753533042645,-460.0,0.00020547,2]
[375115125,1753533042655,-460.0,0.00020547,2]
[375115127,1753533042664,-460.0,0.00020547,2]
[375115129,1753533042674,-460.0,0.00020547,2]
[375115131,1753533042683,-1022.6,0.00020547,2]
[375115133,1753533042693,-2685.47,0.00020547,2]
[375115135,1753533042702,-460.0,0.00020547,2]
[375115137,1753533042711,-460.0,0.00020547,2]
[375115139,1753533042722,-548.03,0.00020547,2]
[375115141,1753533042731,-460.0,0.00020547,2]
[375115143,1753533042741,-460.0,0.00020547,2]
[375115145,1753533042750,-460.0,0.00020547,2]
[375115147,1753533042760,-460.0,0.00020547,2]
[375115149,1753533042769,-460.0,0.00020547,2]
[375115151,1753533042779,-564.0,0.00020548,2]
[375115153,1753533042789,-685.0,0.00020548,2]
[375115155,1753533042798,-198.0,0.00020548,2]
[375115157,1753533042808,-292.0,0.00020548,2]
[375115159,1753533042817,-151.0,0.0002071,4]
[375115161,1753533042827,-209.96579908,0.00020821,2]
[375115163,1753533042836,-460.0,0.00020821,2]
[375115165,1753533042846,-514.19,0.00020821,2]
[375115167,1753533042855,-471.17836952,0.00020821,2]
[375115169,1753533042864,-460.0,0.00020821,2]
[375115171,1753533042874,-460.0,0.00020821,2]
[375115173,1753533042883,-460.0,0.00020821,2]
[375115175,1753533042893,-460.0,0.00020821,2]
[375115177,1753533042902,-460.0,0.00020821,2]
[375115179,1753533042911,-2412.0,0.00020821,2]
[375115181,1753533042921,-1340.09,0.00020821,2]
[375115183,1753533042931,-460.0,0.00020821,2]
[375115185,1753533042941,-1181.35,0.00020821,2]
[375115187,1753533042950,-985.33,0.00020821,2]
[375115189,1753533042960,-978.32,0.00020821,2]
[375115191,1753533042974,-460.0,0.00020821,2]
[375115193,1753533042984,-460.0,0.00020821,2]
[375115195,1753533042995,-761.41,0.00020821,2]
[375115197,1753533043004,-657.74,0.00020821,2]
[375115200,1753533043015,-460.0,0.00020821,2]
[375115202,1753533043024,-460.0,0.00020821,2]
[375115204,1753533043033,-460.0,0.00020821,2]
[375115206,1753533043043,-460.0,0.00020821,2]
[375115208,1753533043053,-460.0,0.00020821,2]
[375115210,1753533043063,-1022.6,0.00020821,2]
[375115212,1753533043073,-2685.47,0.00020821,2]
[375115214,1753533043083,-460.0,0.00020821,2]
[375115216,1753533043092,-460.0,0.00020821,2]
[375115218,1753533043101,-548.03,0.00020821,2]
[375115220,1753533043112,-460.0,0.00020821,2]
[375115222,1753533043121,-460.0,0.00020821,2]
[375115224,1753533043131,-460.0,0.00020821,2]
[375115226,1753533043141,-460.0,0.00020821,2]
[375115228,1753533043150,-460.0,0.00020821,2]
[375115231,1753533043160,-564.0,0.00020822,2]
[375115233,1753533043169,-685.0,0.00020822,2]
[375115235,1753533043178,-1500.0,0.00020882,2]
[375115237,1753533043188,-420.0,0.00020899,2]
[375115239,1753533043197,-250.25192464,0.000209,2]
[375115241,1753533043207,-5122.76421956,0.0002099,2]
[375115244,1753533043217,-270.41640246,0.00021,2]
[375115248,1753533043227,-745.552,0.00021021,2]
[375115251,1753533043236,-460.0,0.00021095,2]
[375115253,1753533043246,-514.19,0.00021095,2]
[375115256,1753533043255,-460.0,0.00021095,2]
[375115259,1753533043264,-460.0,0.00021095,2]
[375115262,1753533043274,-460.0,0.00021095,2]
[375115265,1753533043283,-460.0,0.00021095,2]
[375115268,1753533043293,-460.0,0.00021095,2]
[375115271,1753533043303,-2412.0,0.00021095,2]
[375115273,1753533043313,-1340.09,0.00021095,2]
[375115275,1753533043322,-460.0,0.00021095,2]
[375115277,1753533043332,-1181.35,0.00021095,2]
[375115279,1753533043341,-985.33,0.00021095,2]
[375115281,1753533043351,-978.32,0.00021095,2]
[375115283,1753533043360,-460.0,0.00021095,2]
[375115285,1753533043370,-460.0,0.00021095,2]
[375115287,1753533043379,-761.41,0.00021095,2]
[375115289,1753533043388,-657.74,0.00021095,2]
[375115291,1753533043397,-460.0,0.00021095,2]
[375115293,1753533043407,-460.0,0.00021095,2]
[375115295,1753533043416,-460.0,0.00021095,2]
[375115297,1753533043425,-460.0,0.00021095,2]
[375115299,1753533043435,-460.0,0.00021095,2]
[375115301,1753533043444,-1022.6,0.00021095,2]
[375115303,1753533043455,-2685.47,0.00021095,2]
[375115305,1753533043464,-460.0,0.00021095,2]
[375115307,1753533043473,-460.0,0.00021095,2]
[375115309,1753533043483,-548.03,0.00021095,2]
[375115311,1753533043492,-460.0,0.00021095,2]
[375115313,1753533043501,-460.0,0.00021095,2]
[375115315,1753533043511,-460.0,0.00021095,2]
[375115317,1753533043520,-460.0,0.00021095,2]
[375115319,1753533043529,-460.0,0.00021095,2]
[375115321,1753533043539,-564.0,0.00021096,2]
[375115323,1753533043548,-685.0,0.00021096,2]
[375115325,1753533043558,-151.0,0.00021129,4]
[375115327,1753533043567,-1188.68,0.000212,2]
[375115329,1753533043577,-460.0,0.00021369,2]
[375115331,1753533043586,-514.19,0.00021369,2]
[375115333,1753533043596,-460.0,0.00021369,2]
[375115335,1753533043605,-460.0,0.00021369,2]
[375115337,1753533043615,-460.0,0.00021369,2]
[375115339,1753533043624,-467.61068627,0.00021369,2]
[375115341,1753533043634,-460.0,0.00021369,2]
[375115343,1753533043644,-2412.0,0.00021369,2]
[375115345,1753533043653,-1340.09,0.00021369,2]
[375115347,1753533043662,-460.0,0.00021369,2]
[375115348,1753533043671,-1181.35,0.00021369,2]
[375115349,1753533043680,-985.33,0.00021369,2]
[375115350,1753533043690,-978.32,0.00021369,2]
[375115351,1753533043700,-460.0,0.00021369,2]
[375115352,1753533043709,-460.0,0.00021369,2]
[375115353,1753533043718,-761.41,0.00021369,2]
[375115354,1753533043727,-657.74,0.00021369,2]
[375115355,1753533043736,-460.0,0.00021369,2]
[375115356,1753533043745,-460.0,0.00021369,2]
[375115357,1753533043754,-460.0,0.00021369,2]
[375115358,1753533043763,-460.0,0.00021369,2]
[375115359,1753533043772,-1022.6,0.00021369,2]
[375115360,1753533043781,-2685.47,0.00021369,2]
[375115361,1753533043790,-460.0,0.00021369,2]
[375115362,1753533043799,-548.03,0.00021369,2]
[375115363,1753533043808,-460.0,0.00021369,2]
[375115364,1753533043817,-460.0,0.00021369,2]
[375115365,1753533043826,-460.0,0.00021369,2]
[375115366,1753533043835,-460.0,0.00021369,2]
[375115367,1753533043844,-460.0,0.00021369,2]
[375115368,1753533043854,-564.0,0.0002137,2]
[375115369,1753533043863,-685.0,0.0002137,2]
[375115370,1753533043872,-2000.0,0.0002143,2]
[375115371,1753533043883,-179.78425889,0.000215,2]
[375115372,1753533043892,-223.0315306,0.00021502,2]
[375115373,1753533043901,-151.0,0.00021548,4]
[375115374,1753533043910,-420.288,0.00021584,2]
[375115375,1753533043918,-648.0,0.00021584,2]
[375115376,1753533043928,-460.0,0.00021643,2]
[375115377,1753533043937,-514.19,0.00021643,2]
[375115379,1753533043947,-460.0,0.00021643,2]
[375115380,1753533043956,-460.0,0.00021643,2]
[375115382,1753533043970,-460.0,0.00021643,2]
[375115384,1753533043979,-460.0,0.00021643,2]
[375115386,1753533043989,-2412.0,0.00021643,2]
[375115388,1753533043999,-1340.09,0.00021643,2]
[375115390,1753533044009,-460.0,0.00021643,2]
[375115392,1753533044019,-1181.35,0.00021643,2]
[375115394,1753533044029,-985.33,0.00021643,2]
[375115396,1753533044038,-978.32,0.00021643,2]
[375115398,1753533044049,-460.0,0.00021643,2]
[375115400,1753533044060,-423.06604322,0.00021643,2]
[375115402,1753533044070,-761.41,0.00021643,2]
[375115404,1753533044079,-657.74,0.00021643,2]
[375115406,1753533044089,-460.0,0.00021643,2]
[375115408,1753533044100,-460.0,0.00021643,2]
[375115410,1753533044109,-460.0,0.00021643,2]
[375115412,1753533044118,-460.0,0.00021643,2]
[375115414,1753533044128,-1022.6,0.00021643,2]
[375115416,1753533044137,-2685.47,0.00021643,2]
[375115418,1753533044146,-460.0,0.00021643,2]
[375115420,1753533044156,-548.03,0.00021643,2]
[375115422,1753533044165,-460.0,0.00021643,2]
[375115424,1753533044174,-460.0,0.00021643,2]
[375115426,1753533044183,-460.0,0.00021643,2]
[375115428,1753533044193,-460.0,0.00021643,2]
[375115430,1753533044202,-460.0,0.00021643,2]
[375115432,1753533044212,-564.0,0.00021644,2]
[375115434,1753533044221,-685.0,0.00021644,2]
[375115436,1753533044230,-2200.0,0.00021702,2]
[375115438,1753533044240,-160.0,0.000218,2]
[375115440,1753533044249,-500.0,0.00021917,2]
[375115441,1753533044258,-500.0,0.00021917,2]
[375115443,1753533044267,-460.0,0.00021917,2]
[375115445,1753533044277,-514.19,0.00021917,2]
[375115447,1753533044286,-242.79311776,0.00021917,2]
[375115449,1753533044296,-460.0,0.00021917,2]
[375115451,1753533044305,-460.0,0.00021917,2]
[375115453,1753533044315,-460.0,0.00021917,2]
[375115455,1753533044325,-2412.0,0.00021917,2]
[375115457,1753533044335,-1340.09,0.00021917,2]
[375115459,1753533044344,-460.0,0.00021917,2]
[375115461,1753533044353,-1181.35,0.00021917,2]
[375115463,1753533044363,-985.33,0.00021917,2]
[375115465,1753533044372,-978.32,0.00021917,2]
[375115467,1753533044381,-460.0,0.00021917,2]
[375115469,1753533044391,-761.41,0.00021917,2]
[375115471,1753533044401,-657.74,0.00021917,2]
[375115473,1753533044410,-460.0,0.00021917,2]
[375115475,1753533044420,-460.0,0.00021917,2]
[375115477,1753533044430,-460.0,0.00021917,2]
[375115479,1753533044439,-460.0,0.00021917,2]
[375115481,1753533044449,-1022.6,0.00021917,2]
[375115483,1753533044459,-2685.47,0.00021917,2]
[375115485,1753533044468,-276.36522131,0.00021917,2]
[375115487,1753533044478,-548.03,0.00021917,2]
[375115489,1753533044487,-460.0,0.00021917,2]
[375115491,1753533044497,-460.0,0.00021917,2]
[375115493,1753533044506,-460.0,0.00021917,2]
[375115495,1753533044517,-460.0,0.00021917,2]